Cogmind - Beta 14 @@@ ROGUE MODE // 2024.08.22 @ 21:17:47 Player: Daffa0360 Result: Destroyed by BD-2J4(R) with Subdweller Laser Performance ------------- Evolutions (0) 0 Regions Visited (3) 600 Robots Destroyed (12) 60 Value Destroyed (354) 354 Prototype IDs (0) 0 Alien Tech Used (0) 0 Bonus (14) 14 TOTAL SCORE: 1028 Bonus ------- Follower Combat Kills 14 Cogmind --------- Core Integrity 0/250 Matter 28/300 Energy 160/160 System Corruption 0% Temperature Cool (6) Movement Rolling (110) Ox2 Location -10/Subcaves Parts ------- > --- POWER (1) -------- Light Nuclear Core > --- PROPULSION (2) --- Wheel > --- UTILITY (2) ------ Small Storage Unit Makeshift Light Armor Plating > --- WEAPON (2) ------- Battle Rifle Subdweller Shrapnel Launcher > --- INVENTORY (8) ---- Improved Terrain Scanner Medium Laser Assault Rifle Mining Laser Proton Bomb Trap Proton Bomb Trap Peak State ------------ > --- POWER ------------ Light Nuclear Core > --- PROPULSION ------- Wheel > --- UTILITY ---------- Small Storage Unit Makeshift Light Armor Plating > --- WEAPON ----------- Battle Rifle Subdweller Shrapnel Launcher > --- INVENTORY -------- Improved Terrain Scanner Medium Laser Assault Rifle Mining Laser Proton Bomb Trap Proton Bomb Trap [Rating: 13] Favorites ----------- Power Light Ion Engine Engine Light Ion Engine Power Core Light Nuclear Core Propulsion Hover Unit Leg Aluminum Leg Wheel Compact Wheel Hover Unit Hover Unit Utility Small Storage Unit Device Seismic Detector Storage Small Storage Unit Protection Makeshift Light Armor Plating Weapon Light Assault Rifle Energy Gun Medium Laser Ballistic Gun Light Assault Rifle Launcher Subdweller Shrapnel Launcher Special Weapon Mining Laser Build | -11 -10 -10 -10 ------- Run | Yrd Mat Min Sub Slots Evolved . | . . . . Power . | . . . . Propulsion . | . . . . Utility . | . . . . Weapon . | . . . . Parts Attached 20 | 1 2 4 13 Power 3 | . . 1 2 Engine 1 | . . . 1 Core 2 | . . 1 1 Reactor . | . . . . Propulsion 7 | . 2 3 2 Treads . | . . . . Leg 1 | . . 1 . Wheel 3 | . . 1 2 Hover 3 | . 2 1 . Flight . | . . . . Utility 2 | 1 . . 1 Device 1 | 1 . . . Storage . | . . . . Processor . | . . . . Hackware . | . . . . Protection 1 | . . . 1 Artifact . | . . . . Weapon 8 | . . . 8 Energy Gun 2 | . . . 2 Energy Cannon . | . . . . Ballistic Gun 1 | . . . 1 Ballistic Cannon . | . . . . Launcher 2 | . . . 2 Special Weapon 3 | . . . 3 Impact Weapon . | . . . . Slashing Weapon . | . . . . Piercing Weapon . | . . . . Special Melee Weapon . | . . . . Unidentified Prototypes . | . . . . Parts Lost 7 | . . 1 6 Power 1 | . . . 1 Propulsion 4 | . . 1 3 Utility 1 | . . . 1 Weapon 1 | . . . 1 Highest Loss Streak 2 | . . 1 2 To Critical Strikes . | . . . . Average Slot Usage (%) 95 | . 100 99 93 Engine 6 | . 14 6 5 Core 5 | . . 7 4 Leg 1 | . 4 4 . Wheel 16 | . . 2 24 Hover 9 | . 23 20 2 Device 12 | . 14 14 12 Storage 14 | . 14 14 14 Ballistic Gun 21 | . 28 28 17 Launcher 2 | . . . 3 Special Weapon 3 | . . . 6 Peak Build Rating 13 | 8 8 10 13 Average Rating 9 | 6 7 9 9 On Entrance 8 | 6 8 8 10 Naked Turns . | . . . . Heaviest Build 24 | 12 12 14 24 Greatest Support 36 | 20 20 16 36 Greatest Overweight (x) 2 | . 1 2 2 Average Overweight (x) . | . . . . Largest Inventory Capacity 8 | 8 8 8 8 Average Capacity 8 | 8 8 8 8 Most Carried 8 | 8 8 8 8 Average Carried 7 | 7 8 7 7 Final Capacity 8 | 8 8 8 8 Final Carried 8 | 8 8 8 6 Class Distribution -------------------- 100% | Mutant Dominant Class ---------------- Mutant | -10/Materials Mutant | -10/Mines Mutant | -10/Subcaves Resources | -11 -10 -10 -10 ----------- Run | Yrd Mat Min Sub Matter Collected 516 | 228 30 67 191 Remotely . | . . . . Salvage Created 433 | 118 . 82 233 Parts 30 | 7 . 6 17 Haulers Intercepted . | . . . . Recyclers Shooed . | . . . . Parts Field Recycled . | . . . . Retrieved Matter . | . . . . Parts Self-Destructed 11 | . . . 11 Prevented . | . . . . Kills | -11 -10 -10 -10 ------- Run | Yrd Mat Min Sub Combat Hostiles Destroyed 10 | . . 2 8 Guns 7 | . . 2 5 AOE 3 | . . . 3 Classes Destroyed 5 | 2 . 1 2 Tunneler 1 | 1 . . . Recycler 1 | 1 . . . Swarmer 2 | . . . 2 Grunt 2 | . . 2 . Subdweller 6 | . . . 6 Best Kill Streak 2 | 2 . 1 2 Combat Bots Only 2 | . . 1 2 Max Kills in Single Turn 1 | 1 . 1 1 Gunslinging . | . . . . Exploded 1 | . . . 1 Melee . | . . . . Uniques/NPCs Destroyed . | . . . . Combat | -11 -10 -10 -10 -------- Run | Yrd Mat Min Sub Hostile Shots Fired 47 | . . 9 38 Missed 12 | . . 1 11 Damage Taken 799 | . . 102 697 Core 268 | . . 21 247 Absorbed by Shields . | . . . . Core Remaining (%) 100 | 100 . . . Volleys Fired 63 | 7 2 11 43 Largest 2 | 2 2 2 2 Hottest 120 | 40 40 40 120 Shots Fired 115 | 14 4 22 75 Gun 96 | 14 4 22 56 Cannon . | . . . . Launcher 13 | . . . 13 Special 6 | . . . 6 Kinetic 102 | 14 4 22 62 Thermal 13 | . . . 13 Explosive . | . . . . Electromagnetic . | . . . . Robot Hit Streak 9 | 6 9 5 7 Robot Miss Streak 4 | 1 . 4 3 Penetration Max . | . . . . Secondary Targets . | . . . . Shots Hit Robots 62 | 11 4 11 36 Core Hits 24 | 3 . 7 14 Critical Kills . | . . . . Critical Parts Destroyed . | . . . . Critical Strikes 1 | . . . 1 Burn 1 | . . . 1 Melee Attacks . | . . . . Impact . | . . . . Slashing . | . . . . Piercing . | . . . . Sneak Attacks . | . . . . Combat Hostiles . | . . . . Follow-up Attacks . | . . . . Damage Inflicted 966 | 124 37 116 689 Guns 612 | 124 37 116 335 Cannons . | . . . . Explosions 354 | . . . 354 Melee . | . . . . Ramming . | . . . . Kinetic 915 | 124 37 116 638 Thermal 51 | . . . 51 Explosive . | . . . . Electromagnetic . | . . . . Impact . | . . . . Slashing . | . . . . Piercing . | . . . . Highest Corruption . | . . . . Average Corruption . | . . . . Corruption Purged . | . . . . Corruption Blocked . | . . . . Overload Shots . | . . . . Overflow Damage . | . . . . Projectiles . | . . . . Explosions . | . . . . Melee . | . . . . Knockbacks . | . . . . Impact . | . . . . Kinetic . | . . . . Secondary . | . . . . Self-Inflicted Damage 59 | . . . 59 Shots 5 | . . . 5 Rammed . | . . . . Targets Rammed . | . . . . Kicked . | . . . . Crushed . | . . . . Highest Temperature 20 | . 4 20 . Average Temperature 6 | . 3 7 . Received Heat Transfer 120 | . . 60 60 Siege Activations . | . . . . Robots Corrupted . | . . . . Combat Hostiles . | . . . . Parts Fried . | . . . . Impact Corruptions . | . . . . Robots Melted . | . . . . Combat Hostiles . | . . . . Parts Melted 2 | . . . 2 Heat Transferred 222 | . . . 222 Parts Sabotaged . | . . . . Parts Stolen . | . . . . Parts Stripped . | . . . . Power Chain Reactions . | . . . . Alert | -11 -10 -10 -10 ------- Run | Yrd Mat Min Sub Peak Influence 74 | 10 30 74 . Initial 11 | . 6 11 . Average 17 | 4 21 17 . Maximum Alert Level . | . . . . Low Security (%) 100 | 100 100 100 . Level 1 . | . . . . Level 2 . | . . . . Level 3 . | . . . . Level 4 . | . . . . Level 5 . | . . . . High Security . | . . . . Max Security . | . . . . Squads Dispatched 1 | . 1 . . Investigation . | . . . . Extermination . | . . . . Reinforcement 1 | . 1 . . Assault . | . . . . Garrison . | . . . . Intercept . | . . . . Searches Triggered . | . . . . Construction Impeded . | . . . . Haulers Reinforced . | . . . . Active Scanning Responses . | . . . . Cargo Convoy Interrupts . | . . . . Stealth | -11 -10 -10 -10 --------- Run | Yrd Mat Min Sub Distress Signals . | . . . . Communications Jammed . | . . . . Distress Signals . | . . . . Times Spotted 16 | . 1 3 12 Peak Tracking Total 6 | . 1 2 6 Tactical Retreats 2 | . . 1 1 Traps | -11 -10 -10 -10 ------- Run | Yrd Mat Min Sub Traps Triggered 1 | . . . 1 Indirectly . | . . . . Trap Hack Attempts . | . . . . Triggered . | . . . . Disarmed . | . . . . Reprogrammed . | . . . . Reused . | . . . . Traps Extracted . | . . . . Installed 1 | . . . 1 Triggered . | . . . . Most Traps Carried 3 | . . 3 3 Machines | -11 -10 -10 -10 ---------- Run | Yrd Mat Min Sub Machines Disabled . | . . . . Max in Single Turn . | . . . . Machines Repaired . | . . . . Machines Dismantled . | . . . . Machines Sabotaged . | . . . . Overloaded Fab Kills . | . . . . Hacking | -11 -10 -10 -10 --------- Run | Yrd Mat Min Sub Machines Accessed 2 | . 1 1 . Terminals 2 | . 1 1 . Fabricators . | . . . . Repair Stations . | . . . . Recycling Units . | . . . . Scanalyzers . | . . . . Garrison Access . | . . . . Total Hacks 3 | . 2 1 . Successful 3 | . 2 1 . Failed . | . . . . Catastrophic . | . . . . Database Lockouts . | . . . . Manual . | . . . . Terminals 3 | . 2 1 . Fabricators . | . . . . Repair Stations . | . . . . Recycling Units . | . . . . Scanalyzers . | . . . . Garrison Access . | . . . . Terminal Hacks 3 | . 2 1 . Robot Analysis 1 | . 1 . . Locate Traps 1 | . 1 . . Zone Layout 1 | . . 1 . Fabricator Hacks . | . . . . Repair Station Hacks . | . . . . Recycling Unit Hacks . | . . . . Scanalyzer . | . . . . Garrison Access Hacks . | . . . . Unauthorized Hacks . | . . . . Terminals . | . . . . Fabricators . | . . . . Repair Stations . | . . . . Recycling Units . | . . . . Scanalyzers . | . . . . Garrison Access . | . . . . Data Cores Recovered . | . . . . Used . | . . . . Hacking Detections 1 | . 1 . . Full Trace Events . | . . . . Feedback Events . | . . . . Feedback Blocked . | . . . . Robot Schematics Acquired . | . . . . Robots Built . | . . . . Authchips . | . . . . Time . | . . . . Total Robot Build Rating . | . . . . Part Schematics Acquired . | . . . . Parts Built . | . . . . Authchips . | . . . . Time . | . . . . Total Part Build Rating . | . . . . Parts Repaired . | . . . . Time . | . . . . Parts Recycled . | . . . . Recycled Matter . | . . . . Retrieved Matter . | . . . . Retrieved Components . | . . . . Parts Scanalyzed . | . . . . Part Schematics Acquired . | . . . . Parts Damaged . | . . . . Bothacking | -11 -10 -10 -10 ------------ Run | Yrd Mat Min Sub Used RIF Installer . | . . . . Robots Hacked . | . . . . Non-combat . | . . . . Combat . | . . . . Robot Hacks Applied . | . . . . Relay Couplers Released . | . . . . Fabnet Peak Effective % . | . . . . Robots Rewired . | . . . . Allies Hacked . | . . . . Hacks Repelled . | . . . . Allies | -11 -10 -10 -10 -------- Run | Yrd Mat Min Sub Total Allies 3 | . . 3 . Largest Group 3 | . . 3 3 Highest-Rated Group 40 | . . 40 40 Highest-Rated Ally 16 | . . 16 16 Total Orders . | . . . . Ally Attacks 16 | . . 2 14 Total Damage 140 | . . 18 122 Kills 2 | . . . 2 Allies Corrupted . | . . . . Allies Melted . | . . . . Intel | -11 -10 -10 -10 ------- Run | Yrd Mat Min Sub Robot Analysis Total 1 | . 1 . . Derelict Logs Recovered 3 | . . 2 1 Drone Launches . | . . . . Drone Recoveries . | . . . . Exploration | -11 -10 -10 -10 ------------- Run | Yrd Mat Min Sub Turns Passed 2033 | 43 63 667 1260 Spaces Moved 1569 | 15 81 523 950 Core . | . . . . Treads . | . . . . Legs 135 | 15 7 113 . Wheels 1056 | . . 106 950 Hover 378 | . 74 304 . Flight . | . . . . Fastest Speed 56 | 120 56 56 95 Average Speed 98 | 120 62 95 103 Slowest Speed 190 | 120 120 190 110 Overloaded Moves . | . . . . Propulsion Burnouts . | . . . . Robots Hopped . | . . . . Cave-ins Triggered . | . . . . Exploration Rate (%) 42 | 4 21 96 49 Regions Visited 3 Branch Regions 2 Pre-discovered Areas 2 | . . . 2 Known Exits Taken . | . . . . Unknown Exits Taken 3 | 1 1 1 . Scrap Searched 1 | . . 1 . Spaces Dug 12 | . . . 12 Terrain Destroyed 100 | . . . 100 Melee . | . . . . Projectile . | . . . . AOE 100 | . . . 100 Terrain Rammed . | . . . . Walls Destroyed . | . . . . Machines Disabled . | . . . . Actions | -11 -10 -10 -10 --------- Run | Yrd Mat Min Sub Total 1933 | 27 89 673 1144 Wait 266 | 3 3 129 131 Move 1566 | 14 80 522 950 Hop . | . . . . Pick Up 9 | 2 . 3 4 Fast Attach 5 | 1 2 1 1 Attach 5 | . . 1 4 Detach . | . . . . Swap 10 | . . 2 8 Drop 8 | . 2 4 2 Fire 63 | 7 2 11 43 Melee . | . . . . Ram . | . . . . Kick . | . . . . Crush . | . . . . Escape Stasis . | . . . . Rewire . | . . . . Trap 1 | . . . 1 Miscellaneous . | . . . . Route ------- -11/Scrapyard -10/Materials -10/Mines (discovered 3 exits: [*Mat x2] / [*Sub]) -10/Subcaves (discovered 2 exits: [*Mat x2]) History --------- Turn | Location | Event 1 | -11/Scrapyard | Discovered new exit (range 3) 44 | -11/Scrapyard | Entered Materials 90 | -10/Materials | Discovered new exit (range 16) 107 | -10/Materials | Entered Mines 109 | -10/Mines | Discovered new exit (range 19) 133 | -10/Mines | Met a Derelict bent on vengeance 191 | -10/Mines | Assisted by bots powering up and referring to "LRC-V3" 206 | -10/Mines | Learned 4 Materials zone layouts 306 | -10/Mines | Build established: Mutant 377 | -10/Mines | Discovered new exit (range 3) 629 | -10/Mines | Found a hidden stash of uninstalled traps 752 | -10/Mines | Discovered new exit (range 3) 774 | -10/Mines | Entered Subcaves 774 | -10/Subcaves | Accompanied by 3 allies 879 | -10/Subcaves | Lost 3 allies 1066 | -10/Subcaves | Learned location of Zion (-6) 1139 | -10/Subcaves | Met a Zionite searching for "candidates" 1589 | -10/Subcaves | Ambushed by Subdweller buried in earth 1600 | -10/Subcaves | A swath of the cavern ceiling suddenly collapsed 1715 | -10/Subcaves | Shifting Twisted Machinery released Sub. Beam Cannon 1807 | -10/Subcaves | Shifting Twisted Machinery released Spk. Treads 1817 | -10/Subcaves | Shifting Twisted Machinery released Barrage Gun 1838 | -10/Subcaves | A swath of the cavern ceiling suddenly collapsed 1883 | -10/Subcaves | Core integrity fell below 50% 1920 | -10/Subcaves | Shifting Twisted Machinery released Mak. Light Armor Plating 1921 | -10/Subcaves | Discovered new exit (range 7) 1922 | -10/Subcaves | Discovered new exit (range 8) 1929 | -10/Subcaves | Shifting Twisted Machinery released Flamer 1979 | -10/Subcaves | Core integrity fell below 20% 2034 | -10/Subcaves | Destroyed by BD-2J4(R) with Subdweller Laser Last Messages --------------- 01861_ FV-3JS(R): "OHNO!" 01872_ Seismic Detector destroyed. 01874_ FV-3JS(R) suffers critical hit (Burn). 01884_ Com. Wheel destroyed. 01885_ Sub. Power Source melted. 01885_ Sub. Machine Gun melted. 01885_ FV-3JS(R) destroyed. 01890_ Acquired 55 matter. 01901_ Acquired Battle Rifle. Mak. Light Armor Plating falls loose from the Twisted Machinery. 01921_ EXIT=FOUND Flamer falls loose from the Twisted Machinery. 01929_ Acquired Mak. Light Armor Plating. 01974_ Lgt. Assault Rifle destroyed. 01976_ Sub. Monowheel destroyed. 01981_ Destroyed Scrap Shield. 01981_ ZQ-HJL(R) destroyed. 01988_ Acquired Scrap Shield Fragment. 01989_ Dropped Scrap Shield Fragment. Map ----- +----------------------------------------------------+ | | | | | | | | | ?????????????????????????????????????????????????? | | ?????????????????????????????????????????????????? | | ?????????????????????????????????????????????????? | | ?????????????????????????????????????????????????? | | ?????????????????????????????????????????????????? | | ?????????????????????????????????????????????????? | | ?????????????????????????????????????????????????? | | ?????????????????????????????????????????????????? | | ?????????????????????????????????????????????????? | | ?????????????????????????????????????????????????? | | ?????????????????????????????????????????????????? | | ?????????????????????????????????????????????????? | | ???????????????????????????????????#######???????? | | ???????????????????????????????????# ###?????? | | ??????????????????#####????????????# ###???? | | ??????????##??????#"" ????????????# #???? | | ?????????? #???" ##"" ??????????### ###?? | | ?????????? ##???? " ##???##???#" "# #?? | | ?????????? #""???? #### ##??#" # #?? | | #???????## " ?????# #??#" | #?? | | #?###??## " ??????# #??#### "##? | | ## "#### ""#????### @ #????# #? | | # "#"#" #?##### ####### #? | | ##""""" #?## ### ## & ##? | | ##""""" #### ## ## # ##?? | | "" "#### ## #?### "" ##?# | | """## #??# ### ## | | "" ## #??# #### " | | " R #?## ###?## #?#" < | | "##]" ##??## #???# ##?###" " " " | | "### ##???# ##### #????## ### | | "#?## ##?## ## #?????## ##?? | | #??## ### ######### ###? | | ""#?## #### # ## | | """"#### ## ##?# | | ####### ##### #??# | | #????# #???# #??## < # | | ?????# ##### #??## ## | | ????# ### ??## ### ## | | ??? #### ??###?# ## | | ??## #?# #?????# # # | | ???## ##### #? ##?????#### | | ????# ##???## ##? #????????# # # | | ????## ##?????### ##?? #????????## ####? | | ?????##?????????## ##??? ##???????## ##??? | | ????????????????## #???? #???????## ##?# | +----------------------------------------------------+ Best States ------------- Heat Dissipation 25 Energy Generation 14 Energy Capacity 160 Matter Stores 300 Matter Capacity 300 Sight Range 16 Terrain Scan Density 10 Armor Coverage 100 Evasion (%) 53 Item Schematics ----------------- None Robot Schematics ------------------ None Fabricated ------------ Nothing Alien Tech Used ----------------- None Achievements -------------- None Challenges ------------ None Game ------ Seed CentriumLaserSuite Manual? 0 Play Time 00:12:51 Cumulative 58.1 hours Start 2024.08.22 @ 21:08:02 End 2024.08.22 @ 21:17:47 Sessions 1 Manual Loads 0 Difficulty Rogue Special Mode None Game No. 95 Rogue 91 Adventurer 4 Explorer 0 Win Type - Total 0 Types 0/0/0/0/0/0/0/0/0 Lore% 27 Gallery% 41 Achievement% 32 Wizard Run 0 Options --------- Layout 2 ASCII 0 Keyboard 0 Movement Mouse Keybinds 0 Fullscreen 2 Font 24/Smallcaps Map View 50x44 Zoom Use 0% Tactical HUD 1 Map Filters NONE Filters NONE Steam 1 RUN: 9fa4db4f-0226-4792-8172-fb6c26a8b9dc